bitfinex/quotes_ETHUSD_20240910
["timestamp","ask_amount","ask_price","bid_price","bid_amount"]
[1725955160772,3.14667012,2366.0,2365.9,0.99389522]
[1725955162119,3.14667012,2366.0,2365.9,0.55]
[1725955162346,3.14667012,2366.0,2365.9,0.99389522]
[1725955162619,3.14667012,2366.0,2365.9,0.55]
[1725955162908,3.14667012,2366.0,2365.9,0.99389522]
[1725955163083,3.14667012,2366.0,2365.9,0.55]
[1725955163611,3.14667012,2366.0,2365.8,0.99390305]
[1725955163770,2.70319367,2365.9,2365.8,0.55]
[1725955163968,2.70319367,2365.9,2365.8,1.71832578]
[1725955164171,2.70319367,2365.9,2365.8,4.71832578]
[1725955164906,0.72633827,2365.9,2365.8,4.71832578]
[1725955165213,0.88734799,2366.0,2365.8,4.80285353]
[1725955165385,0.88734799,2366.0,2365.9,0.44390245]
[1725955165580,0.72637059,2366.0,2365.9,5.62202502]
[1725955165894,0.88734799,2366.3,2365.9,5.70654958]
[1725955166095,0.88734799,2366.3,2366.1,1.4844308]
[1725955166320,0.88734799,2366.3,2366.2,0.44390245]
[1725955166474,2.71667237,2366.3,2366.2,0.99390245]
[1725955166673,2.71667237,2366.3,2366.2,3.99390245]
[1725955167571,0.73172975,2366.3,2366.2,3.99390245]
[1725955168194,0.73172975,2366.3,2366.2,3.55]
[1725955168400,0.73172975,2366.3,2366.2,0.55]
[1725955168706,0.88734799,2366.4,2366.2,0.55]
[1725955168917,0.88734799,2366.4,2366.3,0.55]
[1725955169119,2.71514667,2366.4,2366.3,0.55]
[1725955169783,2.71514667,2366.4,2366.2,0.55]
[1725955169987,0.88734799,2366.4,2366.2,0.55]
[1725955170206,1.33082444,2366.5,2366.3,0.0845155]
[1725955170207,0.88734799,2366.5,2366.3,0.0845155]
[1725955170381,0.88734799,2366.5,2366.4,0.55]
[1725955170713,0.88734799,2366.7,2366.5,2.3058]
[1725955170883,1.33082444,2366.9,2366.6,0.63449956]
[1725955170884,0.88734799,2366.8,2366.6,0.63449956]
[1725955171087,0.73065441,2366.7,2366.6,0.63449956]
[1725955171474,0.88734799,2366.8,2366.6,0.63449956]
[1725955172314,1.61770884,2366.8,2366.6,0.63449956]
[1725955172524,0.88734799,2366.9,2366.6,0.63449956]
[1725955172677,1.61745235,2366.9,2366.6,0.63449956]
[1725955173021,0.88734799,2366.9,2366.6,0.63449956]
[1725955173227,2.71261363,2366.8,2366.6,0.63449956]
[1725955173380,0.88734799,2366.8,2366.6,0.63449956]
[1725955173582,1.61728708,2366.8,2366.6,0.63449956]
[1725955173886,0.88734799,2366.9,2366.6,0.63449956]
[1725955174091,1.61726331,2366.9,2366.6,0.63449956]
[1725955174913,0.88734799,2366.9,2366.6,0.63449956]
[1725955175121,1.61709156,2366.9,2366.6,0.63449956]
[1725955175622,0.88734799,2366.9,2366.6,0.63449956]
[1725955175977,2.71131242,2366.9,2366.6,0.63449956]
[1725955176290,0.88734799,2366.9,2366.6,0.63449956]
[1725955176487,0.88734799,2367.0,2366.6,0.63449956]
[1725955176707,2.7109907,2367.0,2366.6,0.63449956]
[1725955176874,0.7294571,2366.9,2366.6,0.63449956]
[1725955177072,0.88734799,2367.0,2366.6,0.63449956]
[1725955177323,2.71098178,2367.0,2366.6,0.63449956]
[1725955177630,0.72932313,2366.9,2366.6,0.63449956]
[1725955177778,0.88734799,2367.0,2366.6,0.63449956]
[1725955177976,2.71067413,2367.0,2366.6,0.63449956]
[1725955178191,0.72933118,2366.9,2366.6,0.63449956]
[1725955178425,0.88734799,2367.0,2366.6,0.63449956]
[1725955178585,2.7195701,2367.0,2366.6,0.63449956]
[1725955178799,0.88734799,2367.0,2366.6,0.63449956]
[1725955178987,2.71956939,2367.0,2366.6,0.63449956]
[1725955179317,0.88734799,2367.2,2366.6,0.92852952]
[1725955179525,0.73277528,2367.2,2366.6,3.92852952]
[1725955179691,3.38394799,2367.3,2366.6,3.92852952]
[1725955180022,3.38394799,2367.3,2366.7,5.8940308]
[1725955180182,0.88734799,2367.3,2366.8,4.61674287]
[1725955180579,1.61996477,2367.3,2366.8,4.61674287]
[1725955180780,0.88734799,2367.3,2366.8,4.61674287]
[1725955181276,0.88734799,2367.3,2366.8,4.53225603]
[1725955181624,3.29984799,2367.2,2366.8,3.55]
[1725955181824,3.29984799,2367.2,2366.8,0.55]
[1725955181981,3.29984799,2367.2,2366.6,0.55]
[1725955182611,2.4125,2367.2,2366.6,0.55]
[1725955182994,3.29984799,2367.2,2366.6,0.55]
[1725955183194,3.29984799,2367.2,2366.7,0.355]
[1725955183396,3.29984799,2367.2,2366.8,0.55]
[1725955183793,2.4125,2367.2,2366.8,0.55]
[1725955184413,3.29984799,2367.2,2366.8,0.55]
[1725955184720,2.4125,2367.2,2366.8,0.55]
[1725955184922,3.29984799,2367.2,2366.6,0.55]
[1725955185087,3.29984799,2367.2,2366.6,1.3405]
[1725955185483,2.4125,2367.2,2366.6,1.3405]
[1725955185695,3.29984799,2367.2,2366.6,1.3405]
[1725955185893,2.4125,2367.2,2366.6,1.3405]
[1725955186109,2.4125,2367.2,2366.7,0.43405]
[1725955186335,3.29984799,2367.2,2366.8,0.55]
[1725955187736,2.4125,2367.2,2366.8,0.55]
[1725955188240,3.29984799,2367.2,2366.8,0.55]
[1725955188801,2.4125,2367.2,2366.8,0.55]
[1725955189225,2.4125,2367.2,2366.8,3.55]
[1725955189607,3.29984799,2367.2,2366.8,3.55]
[1725955190234,0.88734799,2367.2,2366.8,3.55]
[1725955190448,0.88734799,2367.3,2366.8,4.27570471]
[1725955190738,5.29425524,2367.4,2366.8,4.27570471]
[1725955190739,4.85077879,2367.4,2366.8,4.27570471]
[1725955191038,0.7320504,2367.3,2366.8,4.27570471]
[1725955191335,2.71749119,2367.3,2366.9,0.55]
[1725955191534,4.85077879,2367.4,2366.9,0.55]
[1725955191720,0.73203191,2367.3,2366.9,0.55]
[1725955192429,2.75179286,2367.3,2366.9,0.55]
[1725955192604,0.88734799,2367.3,2366.9,0.55]
[1725955193112,1.4844308,2367.0,2366.4,2.4949]
[1725955193319,3.36634799,2367.1,2366.5,0.08450318]
[1725955193521,3.36634799,2367.1,2366.5,3.08450318]
[1725955193522,2.7752531,2367.0,2366.5,3.08450318]
[1725955193731,0.88734799,2367.0,2366.5,3.08450318]
[1725955194043,2.77541886,2367.0,2366.5,3.6424435]
[1725955194242,0.88734799,2367.0,2366.5,3.6424435]
[1725955194444,0.88734799,2366.9,2366.6,0.55]
[1725955194646,0.88734799,2367.3,2366.8,1.4844308]
[1725955194823,0.88734799,2367.3,2367.0,2.3734]
[1725955195022,1.64259231,2367.3,2367.1,0.55]
[1725955195267,1.77443259,2367.5,2367.1,0.55]
[1725955195268,0.88734799,2367.5,2367.1,0.55]
[1725955195412,3.40162317,2367.5,2367.1,0.55]
[1725955195615,0.75518187,2367.4,2367.1,0.55]
[1725955195812,2.77542096,2367.4,2367.1,0.55]
[1725955196056,0.88734799,2367.4,2367.1,0.55]
[1725955196239,2.77542573,2367.4,2367.1,0.55]
[1725955196559,0.88734799,2367.4,2367.1,0.55]
[1725955197269,2.71252883,2367.5,2367.1,0.55]
[1725955197270,1.51366849,2367.5,2367.1,0.55]
[1725955197425,1.80028201,2367.4,2367.1,0.55]
[1725955197628,0.88734799,2367.3,2366.9,0.55]
[1725955198143,1.64266502,2367.3,2366.9,0.55]
[1725955199760,0.7525076,2367.2,2366.9,0.55]
[1725955200072,0.88734799,2367.3,2366.9,0.55]
[1725955200214,0.88403135,2367.3,2366.9,0.55]
[1725955200412,5.08918343,2367.3,2366.9,0.55]
[1725955200655,0.88403135,2367.2,2366.9,0.55]
[1725955200965,2.76528343,2367.2,2366.9,0.55]
[1725955201163,0.88403135,2367.2,2366.9,0.55]
[1725955201373,2.76567717,2367.2,2366.9,0.55]
[1725955201872,0.88403135,2367.2,2366.9,0.55]
[1725955202223,1.6366872,2367.2,2366.9,0.55]
[1725955202424,0.88403135,2367.1,2366.9,0.55]
[1725955203037,3.20073135,2367.1,2366.9,0.55]
[1725955203252,0.75265585,2367.0,2366.9,0.55]
[1725955203560,3.19743135,2367.1,2366.8,3.0]
[1725955203725,3.19743135,2367.1,2366.5,2.4115]
[1725955203726,0.88403135,2367.1,2366.5,5.4115]
[1725955203926,1.64193657,2367.1,2366.6,0.74115]
[1725955204156,1.64193657,2367.1,2366.6,3.74115]
[1725955205071,1.64193657,2367.1,2366.7,0.55]
[1725955205362,0.75790522,2367.0,2366.7,0.55]
[1725955205565,1.64193657,2367.0,2366.6,3.0]
[1725955205764,5.09213747,2367.0,2366.5,5.4115]
[1725955205964,5.09213747,2367.0,2366.5,3.0]
[1725955205965,2.77878367,2366.9,2366.5,3.0]
[1725955206168,0.88403135,2366.9,2366.3,5.4115]
[1725955206461,0.75793246,2366.9,2366.3,5.4115]
[1725955206668,0.75805582,2366.9,2366.3,5.4115]
[1725955206830,0.75805582,2366.9,2366.5,2.4891]
[1725955207021,0.75805582,2366.9,2366.5,5.4891]
[1725955207222,1.64208717,2366.9,2366.6,0.55]
[1725955207423,1.32604702,2367.1,2366.6,5.0344308]
[1725955207424,0.88403135,2367.1,2366.6,5.0344308]
[1725955207661,2.77949482,2367.0,2366.6,3.55]
[1725955207863,0.75818539,2366.9,2366.6,3.55]
[1725955208053,2.02134588,2366.9,2366.6,3.55]
[1725955208630,0.75844904,2366.8,2366.6,3.55]
[1725955208865,0.88403135,2366.8,2366.6,3.55]
[1725955209025,0.88403135,2366.9,2366.6,3.55]
[1725955209225,0.75848395,2366.8,2366.6,3.55]
[1725955209474,0.88403135,2366.9,2366.6,3.55]
[1725955209759,2.78078998,2366.8,2366.6,3.55]
[1725955209966,0.88403135,2366.8,2366.6,3.55]
[1725955210547,0.76639612,2366.7,2366.6,3.55]
[1725955210874,0.88403135,2366.8,2366.6,3.55]
[1725955211774,2.81326351,2366.7,2366.6,3.55]
[1725955211978,0.7716917,2366.7,2366.6,3.55]
[1725955212277,1.32604702,2366.9,2366.6,3.55]
[1725955212278,0.88403135,2366.9,2366.7,2.266]
[1725955212426,0.88403135,2366.9,2366.8,0.55]
[1725955212626,2.81334583,2366.9,2366.8,0.55]
[1725955212825,2.81334583,2366.9,2366.8,3.55]
[1725955213033,0.88403135,2367.2,2366.9,2.0]
[1725955213333,0.88403135,2367.3,2367.1,3.8953308]
[1725955213581,0.88403135,2367.4,2367.2,23.36447679]
[1725955213878,1.32604702,2367.6,2367.3,1.56890457]
[1725955213879,0.88403135,2367.5,2367.3,1.56890457]
[1725955214044,0.88403135,2367.5,2367.4,2.0344308]
[1725955214251,2.8166984,2367.5,2367.4,2.0344308]
[1725955214567,2.8166984,2367.5,2367.2,22.73]
[1725955214880,0.88618833,2367.3,2367.2,19.73]
[1725955215037,5.2316847,2367.3,2367.2,19.44143554]
[1725955215232,7.6866847,2367.3,2367.2,19.44143554]
[1725955215579,8.13390714,2367.3,2366.6,7.36]
[1725955215882,0.88647358,2366.9,2366.5,5.61751475]
[1725955216210,0.77306682,2366.8,2366.5,9.05940978]
[1725955216341,0.88647358,2366.9,2366.5,28.50084532]
[1725955216683,0.88647358,2366.9,2366.5,19.44143554]
[1725955216684,0.88647358,2366.7,2366.5,19.44143554]
[1725955216827,2.80024806,2366.6,2366.5,19.44143554]
[1725955217033,0.76550967,2366.6,2366.5,22.44143554]
[1725955217233,2.80043168,2366.6,2366.5,22.44143554]
[1725955217490,0.76550967,2366.6,2366.5,22.44143554]
[1725955217845,0.88647358,2366.7,2366.5,22.99143554]
[1725955218056,0.88647358,2366.7,2366.6,3.0]
[1725955218264,2.80059226,2366.7,2366.6,3.0]
[1725955218798,2.80078093,2366.7,2366.6,3.0]
[1725955218952,1.91411868,2366.7,2366.6,3.0]
[1725955219301,1.91411868,2366.7,2366.0,11.7412]
[1725955219302,3.98166667,2366.7,2366.0,9.7412]
[1725955219575,0.88680006,2366.2,2365.8,19.44143554]
[1725955219887,2.80091874,2366.1,2365.8,19.44143554]
[1725955220179,0.88680006,2366.2,2365.8,21.94728057]
[1725955220344,0.76561618,2366.1,2365.8,21.94728057]
[1725955220549,0.88680006,2366.2,2365.8,21.94728057]
[1725955220870,0.76560574,2366.1,2365.8,21.94728057]
[1725955221037,0.88680006,2366.2,2365.8,21.94728057]
[1725955221588,0.88680006,2366.2,2365.9,3.0]
[1725955221875,0.88680006,2366.2,2366.0,5.54271475]
[1725955222033,0.88680006,2366.6,2366.1,3.08451491]
[1725955222234,0.88680006,2366.6,2366.2,0.55]
[1725955222438,0.75728938,2366.5,2366.3,0.08451051]
[1725955222673,0.88680006,2366.5,2366.2,19.44143554]
[1725955222881,2.78016538,2366.4,2366.2,19.44143554]
[1725955223175,0.88680006,2366.4,2366.2,19.44143554]
[1725955223381,0.7572777,2366.3,2366.2,19.44143554]
[1725955223591,0.7572777,2366.3,2366.2,22.44143554]
[1725955223817,0.88680006,2366.4,2366.2,22.44143554]
[1725955223935,0.7572671,2366.3,2366.2,22.44143554]
[1725955224244,0.75720159,2366.3,2366.2,22.44143554]
[1725955224655,2.77978198,2366.3,2366.2,22.44143554]
[1725955226461,2.77978198,2366.3,2366.2,19.44143554]
[1725955226695,9.83023675,2366.3,2365.8,7.36]
[1725955226846,0.88589732,2366.1,2365.5,0.66140516]
[1725955227043,0.88589732,2366.1,2365.4,26.80143554]
[1725955227044,3.18937821,2366.0,2365.4,26.80143554]
[1725955227349,0.7625529,2365.9,2365.4,26.80143554]
[1725955227754,3.20969732,2366.0,2365.4,26.80143554]
[1725955227970,0.76255952,2365.9,2365.4,26.80143554]
[1725955228139,3.20969732,2366.0,2365.4,26.80143554]
[1725955228140,2.3238,2366.0,2365.4,26.80143554]
[1725955228486,3.20969732,2366.0,2365.4,26.80143554]
[1725955229137,2.3238,2366.0,2365.5,3.0]
[1725955229338,3.20969732,2366.0,2365.5,3.0]
[1725955229777,2.3238,2366.0,2365.5,3.08453849]
[1725955229976,3.20969732,2366.0,2365.5,3.08453849]
[1725955230280,0.88589732,2366.1,2365.5,3.08453849]
[1725955230477,2.79651704,2366.1,2365.5,3.08453849]
[1725955230677,0.88589732,2366.1,2365.5,3.08453849]
[1725955230887,2.79644181,2366.1,2365.5,3.08453849]
[1725955231085,0.76421416,2366.0,2365.5,3.08453849]
[1725955231240,0.88589732,2366.1,2365.5,3.08453849]
[1725955231449,3.31748195,2366.1,2365.5,3.08453849]
[1725955231684,0.76405775,2366.0,2365.5,3.0]
[1725955231890,1.40730094,2366.1,2365.5,3.0]
[1725955232187,0.76406878,2366.0,2365.5,3.0]
[1725955232491,1.40730094,2366.1,2365.5,3.0]
[1725955232797,1.2785748,2366.0,2365.5,3.0]
[1725955232994,0.51471469,2366.0,2365.5,3.0]
[1725955234994,2.4841,2365.9,2365.5,3.0]
[1725955236087,3.36999732,2365.9,2365.3,3.0]
[1725955236293,0.5213558,2365.8,2365.3,22.44143554]
[1725955236845,2.3479,2365.7,2365.3,22.44143554]
[1725955239311,2.3061,2365.4,2365.3,3.0]
[1725955239457,2.3061,2365.4,2364.9,7.36]
[1725955240461,2.85772147,2365.4,2364.9,7.36]
[1725955240782,2.3061,2365.4,2365.0,3.0]
[1725955241101,3.64884599,2365.9,2365.1,2.4407]
[1725955241257,2.32,2365.9,2365.2,0.08454975]
[1725955241457,2.32,2365.9,2365.2,3.08454975]
[1725955241653,2.32,2365.9,2365.3,0.63707044]
[1725955242203,0.51471469,2366.0,2365.4,2.4043]
[1725955242412,2.4281,2366.1,2365.5,0.08454535]
[1725955242955,2.4281,2366.1,2365.4,5.4043]
[1725955244621,2.356,2366.4,2365.5,0.6345379]
[1725955244772,1.32884599,2366.6,2365.5,0.6345379]
[1725955244773,3.24189732,2366.6,2365.6,23.78563554]
[1725955245118,0.75856715,2366.5,2365.7,6.69755572]
[1725955245268,2.78240786,2366.5,2365.8,0.0845269]
[1725955245609,2.78240786,2366.5,2365.7,6.61302882]
[1725955245610,4.09601207,2366.5,2365.7,6.61302882]
[1725955245787,4.64022651,2366.6,2365.7,6.61302882]
[1725955245788,4.19727784,2366.6,2365.8,0.08452691]
[1725955245990,0.75865581,2366.5,2365.8,0.08452691]
[1725955246189,2.78252661,2366.5,2365.8,2.38779125]
[1725955246496,4.64022651,2366.6,2365.8,2.38779125]
[1725955246497,4.19727784,2366.6,2365.8,2.38779125]
[1725955246695,0.7587206,2366.5,2365.8,2.38779125]
[1725955246894,4.19727784,2366.6,2365.8,2.38779125]
[1725955247115,0.75872181,2366.5,2365.8,2.38779125]
[1725955247914,0.75872181,2366.5,2365.8,21.82922679]
[1725955248116,4.19727784,2366.6,2365.9,5.53792268]
[1725955248289,0.75884877,2366.5,2365.9,5.53792268]
[1725955248677,1.64474609,2366.5,2365.9,5.53792268]
[1725955248912,2.78304455,2366.5,2365.9,5.53792268]
[1725955249079,4.09601207,2366.5,2365.9,3.0]
[1725955249281,2.2714,2366.3,2365.9,3.0]
[1725955249481,5.48151475,2366.3,2365.9,3.0]
[1725955249695,2.2714,2366.3,2365.9,3.0]
[1725955249902,0.88589732,2366.5,2365.9,3.0]
[1725955250252,3.64839206,2366.5,2365.9,3.0]
[1725955250458,1.75106118,2366.5,2365.9,3.0]
[1725955251011,0.86516386,2366.5,2366.0,2.4272]
[1725955251225,2.2714,2366.6,2366.0,2.4272]
[1725955251461,3.15729732,2366.6,2366.0,2.4272]
[1725955251660,0.75909292,2366.5,2366.0,2.4272]
[1725955252014,3.96920767,2366.5,2365.8,24.86863554]
[1725955252255,3.21011475,2366.5,2365.8,24.86863554]
[1725955252429,0.63674121,2366.4,2365.8,24.86863554]
[1725955252840,2.2714,2366.3,2365.8,24.86863554]
[1725955253651,1.52263853,2366.4,2365.8,24.86863554]
[1725955253652,0.63674121,2366.4,2365.8,24.86863554]
[1725955254272,1.39608961,2366.4,2365.8,24.86863554]
[1725955254452,0.63674121,2366.4,2365.8,24.86863554]
[1725955254638,0.69963533,2366.3,2365.8,24.86863554]
[1725955256780,0.69963533,2366.3,2365.8,5.4272]
[1725955259033,1.58553265,2366.3,2365.8,5.4272]
[1725955259653,0.69963533,2366.3,2365.8,5.4272]
[1725955259875,1.58553265,2366.3,2365.8,5.4272]
[1725955260280,0.76059942,2366.2,2365.8,5.4272]
[1725955260585,0.88589732,2366.3,2365.8,5.4272]
[1725955261078,1.52263853,2366.4,2365.8,5.51172789]
[1725955261368,0.76082738,2366.3,2365.8,8.94304423]
[1725955261559,0.88589732,2366.3,2365.8,8.94304423]
[1725955262159,1.64679986,2366.3,2365.8,8.94304423]
[1725955262746,1.64679986,2366.3,2365.8,28.38447977]
[1725955263266,0.76090254,2366.2,2365.8,28.38447977]
[1725955263772,0.88589732,2366.3,2365.8,28.38447977]
[1725955263976,0.88589732,2366.3,2365.8,24.86863554]
[1725955264336,3.21011475,2366.5,2365.8,24.86863554]
[1725955265035,2.2806,2366.4,2365.8,24.86863554]
[1725955265446,0.88540654,2366.1,2365.8,24.86863554]
[1725955267339,0.88540654,2366.1,2365.9,2.4351]
[1725955267561,0.88540654,2366.1,2365.9,5.0072799]
[1725955267776,0.88540654,2366.1,2366.0,5.9851]
[1725955268077,0.88540654,2366.1,2366.0,6.06961896]
[1725955268873,1.32810981,2366.2,2366.0,25.5110545]
[1725955269175,3.21011475,2366.9,2366.0,25.5110545]
[1725955269349,0.56323148,2366.8,2366.0,24.87653554]
[1725955269554,2.2733,2366.6,2366.0,24.87653554]
[1725955270866,0.88597879,2366.3,2366.0,24.87653554]
[1725955271141,0.88597879,2366.3,2366.0,22.44143554]
[1725955272051,0.88597879,2366.3,2366.1,2.3215]
[1725955272258,0.88597879,2366.3,2366.1,4.88231639]
[1725955272459,0.88597879,2366.3,2366.2,3.0]
[1725955275973,0.88597879,2366.5,2366.2,3.0]
[1725955276308,0.76152856,2366.4,2366.2,3.08451356]
[1725955276620,0.88597879,2366.5,2366.2,3.08451454]
[1725955276800,0.76148937,2366.4,2366.2,3.08451365]
[1725955277393,0.88597879,2366.5,2366.2,3.08451365]
[1725955277574,0.88597879,2366.6,2366.2,6.52687614]
[1725955277776,0.76135634,2366.5,2366.2,5.81688792]
[1725955277986,2.78941919,2366.5,2366.2,3.08451365]
[1725955278300,0.88597879,2366.6,2366.2,3.08451365]
[1725955278477,0.76133825,2366.5,2366.2,3.08451365]
[1725955278820,1.64731704,2366.5,2366.2,3.08451365]
[1725955279116,0.88597879,2366.5,2366.2,3.08451365]
[1725955279269,1.64726349,2366.5,2366.2,3.08451365]
[1725955279673,0.88597879,2366.5,2366.2,3.08451365]
[1725955280084,0.88597879,2366.6,2366.2,3.08451365]
[1725955280306,0.76120295,2366.5,2366.2,3.08451365]
[1725955280514,0.88597879,2366.6,2366.2,3.08451365]
[1725955280667,0.76116499,2366.5,2366.2,3.08451365]
[1725955280867,1.64714378,2366.5,2366.2,0.08451365]
[1725955281272,0.88597879,2366.6,2366.2,0.08451365]
[1725955281522,0.76116006,2366.5,2366.2,0.08451365]
[1725955281684,0.88597879,2366.5,2366.2,0.08451365]
[1725955282016,5.42341092,2366.9,2366.2,0.08451365]
[1725955282017,0.88597879,2366.9,2366.5,2.3201]
[1725955282173,1.32896819,2367.1,2366.6,0.63449701]
[1725955282174,0.88597879,2367.0,2366.6,0.63449701]
[1725955282372,1.6403311,2367.0,2366.6,3.63449701]
[1725955282613,0.88597879,2367.1,2366.6,3.63449701]
[1725955282773,1.64013172,2367.1,2366.6,3.63449701]
[1725955282972,1.64013172,2367.1,2366.6,25.81553581]
[1725955283205,0.88597879,2367.2,2366.8,4.3201]
[1725955283372,0.88597879,2367.4,2367.0,2.3201]
[1725955283577,0.88597879,2367.7,2367.3,3.21011475]
[1725955283773,1.77195759,2367.9,2367.4,3.63446866]
[1725955283774,0.88597879,2367.9,2367.4,3.63446866]
[1725955283969,0.88597879,2367.9,2367.4,0.63446866]
[1725955283970,0.88597879,2367.8,2367.4,0.63446866]
[1725955284184,0.88597879,2367.8,2367.4,0.55]
[1725955284384,1.28466925,2367.9,2367.4,0.55]
[1725955284613,0.88597879,2368.0,2367.4,0.55]
[1725955284985,0.88597879,2367.9,2367.3,22.44143554]
[1725955285496,2.75589308,2367.9,2367.3,22.44143554]
[1725955285690,0.74796966,2367.8,2367.3,22.44143554]
[1725955285915,2.3641,2367.8,2367.3,22.44143554]
[1725955286229,2.75636786,2367.7,2367.3,22.44143554]
[1725955286419,0.88597879,2367.7,2367.3,22.44143554]
[1725955286726,0.74798885,2367.7,2367.3,22.44143554]
[1725955286892,3.25007879,2367.8,2367.3,22.44143554]
[1725955287088,2.75609307,2367.7,2367.3,22.44143554]
[1725955287294,0.88597879,2367.7,2367.3,22.44143554]
[1725955287491,3.25007879,2367.8,2367.3,22.44143554]
[1725955287730,0.74785523,2367.7,2367.3,22.44143554]
[1725955287895,3.25007879,2367.8,2367.3,22.44143554]
[1725955288092,0.74785761,2367.7,2367.3,22.44143554]
[1725955288522,3.25007879,2367.8,2367.3,22.44143554]
[1725955288830,0.74773991,2367.7,2367.3,22.44143554]
[1725955289035,0.88597879,2367.8,2367.3,24.68557909]
[1725955289221,0.88597879,2367.9,2367.3,24.68557909]
[1725955289591,1.63373431,2367.9,2367.3,24.68557909]
[1725955289897,0.88597879,2368.0,2367.5,2.2762]
[1725955290136,0.88597879,2368.1,2367.5,3.03668204]
[1725955290434,0.88597879,2368.2,2367.5,2.2762]
[1725955290641,0.926998,2368.3,2367.6,0.08446906]
[1725955290795,0.04101921,2368.3,2367.6,0.63446906]
[1725955290991,2.04773367,2368.3,2367.6,3.63446906]
[1725955291229,3.61737244,2368.3,2367.6,3.63446906]
[1725955291445,1.74947966,2368.3,2367.6,3.63446906]
[1725955291757,1.74947966,2368.3,2367.6,3.55]
[1725955291916,3.21011475,2368.2,2367.6,3.55]
[1725955292544,0.86350087,2368.3,2367.6,3.55]
[1725955293061,0.86350087,2368.3,2367.6,3.6344636]
[1725955293630,3.21011475,2368.0,2367.6,3.0]
[1725955293955,5.69431475,2368.0,2367.4,19.44143554]
[1725955294154,3.21011475,2367.8,2367.4,19.44143554]
[1725955294559,6.58029354,2368.0,2367.4,19.44143554]
[1725955294722,0.79092617,2367.9,2367.4,19.44143554]
[1725955295868,1.61483823,2368.2,2367.2,2.2759]
[1725955296032,0.72885944,2368.2,2367.3,0.55]
[1725955296369,0.72885944,2368.2,2367.3,3.55]
[1725955296568,3.93897419,2368.2,2367.3,3.55]
[1725955296871,1.47362489,2368.1,2367.3,3.55]
[1725955297069,1.47362489,2368.1,2367.3,3.0]
[1725955297070,3.21011475,2368.0,2367.3,3.0]
[1725955297219,3.21011475,2368.0,2367.2,5.2759]
[1725955298372,0.88597879,2368.2,2367.4,2.2759]
[1725955298530,2.4842,2368.3,2367.5,0.63446544]
[1725955298732,0.33701788,2368.2,2367.5,0.63446544]
[1725955299065,0.88597879,2368.5,2367.6,2.3995]
[1725955299232,0.88597879,2368.5,2367.6,5.3995]
[1725955299435,0.88597879,2368.5,2367.6,5.48396368]
[1725955300165,0.7424803,2368.4,2367.6,5.48396368]
[1725955300321,0.88597879,2368.5,2367.6,5.48396368]
[1725955300520,0.76831617,2368.4,2367.6,5.48396368]
[1725955303259,3.97843092,2368.4,2367.6,5.48396368]
[1725955304867,0.76831617,2368.4,2367.6,5.48396368]
[1725955305025,0.88597879,2368.5,2367.7,0.55]
[1725955305223,5.46821475,2368.6,2367.8,2.56605809]
[1725955305224,6.35419354,2368.6,2367.8,2.56605809]
[1725955305453,0.72917123,2368.5,2367.8,2.4816]
[1725955305669,6.35419354,2368.6,2367.8,5.4816]
[1725955305824,0.88597879,2368.5,2367.8,5.4816]
[1725955306022,3.47716296,2368.5,2367.8,5.4816]
[1725955306249,1.65429496,2368.5,2367.8,5.4816]
[1725955307773,0.76831617,2368.5,2367.8,5.4816]
[1725955307926,3.47741664,2368.5,2367.8,5.4816]
[1725955308119,0.76831617,2368.5,2367.8,5.4816]
[1725955308321,0.88597879,2368.6,2367.8,6.36921803]
[1725955308687,0.88597879,2368.7,2368.1,3.21011475]
[1725955308827,4.61154962,2369.0,2368.3,2.4076]
[1725955308828,0.88597879,2369.0,2368.3,2.4076]
[1725955309023,0.04101921,2368.7,2368.3,2.4076]
[1725955311144,0.04101921,2368.7,2368.4,0.63444227]
[1725955311355,0.04101921,2368.7,2368.5,2.4674]
[1725955311654,0.04101921,2368.7,2368.5,5.55183241]
[1725955312152,0.04101921,2368.7,2368.6,6.19821475]
[1725955312350,0.04101921,2368.7,2368.6,29.89469859]
[1725955315668,0.04101921,2368.7,2368.6,26.68458384]
[1725955318361,0.04101921,2368.7,2368.6,29.89469859]
[1725955318591,0.04101921,2368.7,2368.6,30.31829859]
[1725955320359,0.04101921,2368.7,2368.6,30.23387501]
[1725955322082,0.04101921,2368.7,2368.6,29.81027501]
[1725955323006,0.04101921,2368.7,2368.6,30.23387501]
[1725955323595,0.1191248,2369.2,2369.1,4.8529]
[1725955323807,0.1191248,2369.2,2369.1,31.53974029]
[1725955326066,0.1191248,2369.2,2369.1,27.90602554]
[1725955332467,0.1191248,2369.2,2369.1,28.32962554]
[1725955335799,0.1191248,2369.2,2369.1,25.47672554]
[1725955335996,0.1191248,2369.2,2369.1,22.92672554]
[1725955337337,0.1191248,2369.2,2369.1,23.47672554]
[1725955339774,0.1191248,2369.2,2369.1,25.47672554]
[1725955340809,0.1191248,2369.2,2369.1,6.03529]
[1725955346631,0.1191248,2369.2,2369.1,25.47672554]
[1725955352512,0.1191248,2369.2,2369.1,6.03529]
[1725955356551,2.80058434,2369.2,2369.1,6.03529]
[1725955356755,1.72329589,2369.2,2369.1,6.03529]
[1725955357171,2.80057622,2369.2,2369.1,6.03529]
[1725955357371,0.8373171,2369.2,2369.1,6.6957746]
[1725955357545,2.8010896,2369.2,2369.1,6.03529]
[1725955358077,1.91511081,2369.2,2369.1,6.03529]
[1725955358283,3.244079,2369.2,2369.1,6.03529]
[1725955358481,3.24445081,2369.2,2369.1,6.03529]
[1725955358689,3.24445081,2369.2,2369.1,25.47672554]
[1725955359881,3.24445081,2369.2,2369.1,23.47672554]
[1725955360585,3.24445081,2369.2,2369.1,24.13722854]
[1725955360739,2.80154437,2369.2,2369.1,24.13722854]
[1725955361289,2.80154459,2369.2,2369.1,26.13722854]
[1725955361471,1.91548262,2369.2,2369.1,26.13722854]
[1725955361844,3.24445081,2369.2,2369.1,26.13722854]
[1725955362370,1.91548262,2369.2,2369.1,26.13722854]
[1725955362572,3.24445081,2369.2,2369.1,26.13722854]
[1725955362947,3.24445081,2369.2,2369.1,3.660503]
[1725955363367,3.24445081,2369.2,2368.5,3.07480383]
[1725955363368,2.3904,2369.1,2368.3,26.80143554]
[1725955363545,3.27659531,2368.5,2368.3,19.44143554]
[1725955363748,3.27659531,2368.5,2367.9,2.0]
[1725955363749,2.6834918,2368.4,2368.2,1.05713558]
[1725955364057,1.60517441,2368.3,2368.2,2.04985711]
[1725955364239,1.60517441,2368.3,2368.0,19.44143554]
[1725955364240,2.68355185,2368.3,2368.0,20.49857112]
[1725955364441,0.88619531,2368.4,2368.0,19.44143554]